Cogmind - Beta 15 @@@ ROGUE MODE // 2025.08.23 @ 11:37:43 Player: Dadrick Result: Destroyed by G-67 Veteran with Plasma Rifle Performance ------------- Evolutions (7) 3500 Regions Visited (28) 5600 Robots Destroyed (189) 945 Value Destroyed (6317) 6317 Prototype IDs (48) 960 Alien Tech Used (4) 800 Bonus (7642) 7642 TOTAL SCORE: 25764 Bonus ------- High Alert Combat Kills 299 Follower Combat Kills 4358 Entered Garrisons 200 Network Hubs Disabled 600 Met Data Miner 300 Met Imprinter 300 Was Imprinted 300 Built Enhanced Grunts 300 A7 Reached Mainframe 300 Met R17 at Cetus 500 Found Hidden Lab 3000 Friendly Fire -2815 Cogmind --------- Core Integrity 0/1300 Matter 300/300 Energy 100/100 System Corruption 27% Temperature Cool (12) Movement Core (50) Location -3/Research Parts ------- > --- POWER (2) -------- (None) > --- PROPULSION (7) --- (None) > --- UTILITY (10) ----- Experimental Signal Interpreter Advanced Target Analyzer > --- WEAPON (3) ------- (None) > --- INVENTORY (5) ---- Advanced Heat Sink Quantum Capacitor Potential Cannon Peak State ------------ > --- POWER ------------ Zionite Light DM Reactor Light Quantum Reactor > --- PROPULSION ------- Gyrokinetic Inverter Linear Gravjet Linear Gravjet Combat Gravmag System Combat Gravmag System Combat Gravmag System Combat Linear Gravjet > --- UTILITY ---------- Experimental Heat Sink Experimental Heat Sink High-capacity Storage Unit Advanced Visual Processing Unit Experimental Sensor Array Advanced Signal Interpreter Advanced Target Analyzer Medium Regenerative Plating Advanced Remote Force Field Deep Network Scanner > --- WEAPON ----------- Enhanced Nova Cannon Advanced KE Penetrator Power Sword > --- INVENTORY -------- Light Quantum Reactor Power Amplifier Advanced Heat Sink Compact Battery Advanced Weight Redist. System Advanced Sensor Array Advanced Transmission Jammer Advanced Phase Shifter Zionite Weapon Casing Hardened Light Armor Plating Transdimensional Reconstructor Hypervelocity EM Gauss Rifle Long-range Proton Cannon Potential Cannon Advanced KE Penetrator Heavy Missile Launcher Improved Plasma Cutter [Rating: 160] Favorites ----------- Power Zionite Light DM Reactor Engine Light Deuterium Engine Power Core Micro Fission Core Reactor Zionite Light DM Reactor Propulsion Gyrokinetic Inverter Treads Improved Treads Leg Aluminum Leg Wheel Wheel Hover Unit Gyrokinetic Inverter Flight Unit Cesium-ion Thruster Utility Medium Storage Unit Device Experimental Heat Sink Storage Medium Storage Unit Processor Advanced Visual Processing Unit Hackware Makeshift Hacking Suite Protection Medium Regenerative Plating Weapon Advanced KE Penetrator Energy Gun Beam Rifle Energy Cannon Enhanced Nova Cannon Ballistic Gun Advanced KE Penetrator Ballistic Cannon Compact Mass Driver Launcher Rocket Launcher Special Weapon Advanced Remote Datajack Impact Weapon Power Maul Slashing Weapon Phasing Sabre Build | -11 -10 -10 -10 -9 -8 -7 -7 -7 -7 -6 -6 -6 -6 -6 -5 -5 -5 -5 -5 -5 -4 -4 -4 -4 -4 -3 -3 -3 ------- Run | Yrd Mat Min Exi Min Mat Fac Low Low Dat Pro Fac Low Low Zio Pro Fac Ext Cet Arc Hub Fac Was Fac Arm Lab Res Gar Res Slots Evolved 14 | . . . . . 4 2 . . . . 2 . . . . 2 . . . . 2 . . . . 2 . . Power . | . . . . . . . . . . . . . . . . . . . . . . . . . . . . . Propulsion 5 | . . . . . 1 2 . . . . 1 . . . . 1 . . . . . . . . . . . . Utility 8 | . . . . . 2 . . . . . 1 . . . . 1 . . . . 2 . . . . 2 . . Weapon 1 | . . . . . 1 . . . . . . . . . . . . . . . . . . . . . . . Parts Attached 222 | 8 5 7 2 2 38 10 1 . . . 5 . . 2 5 6 18 7 4 2 5 3 12 20 5 2 3 50 Power 24 | 1 . 2 1 . 3 . . . . . 1 . . . . . 3 . . . . . 1 3 . . 1 8 Engine 9 | 1 . 2 1 . 3 . . . . . 1 . . . . . . . . . . . . . . . . 1 Core 2 | . . . . . . . . . . . . . . . . . 2 . . . . . . . . . . . Reactor 13 | . . . . . . . . . . . . . . . . . 1 . . . . . 1 3 . . 1 7 Propulsion 77 | 2 2 2 . 1 15 6 . . . . 2 . . . 1 3 7 1 2 . 2 . 5 7 . . . 19 Treads 9 | 2 . . . . 7 . . . . . . . . . . . . . . . . . . . . . . . Leg 16 | . 2 2 . 1 7 . . . . . . . . . . . . . . . . . . . . . . 4 Wheel 6 | . . . . . . . . . . . . . . . . . . . . . . . . . . . . 6 Hover 27 | . . . . . . . . . . . . . . . . . 6 1 2 . 2 . 5 7 . . . 4 Flight 19 | . . . . . 1 6 . . . . 2 . . . 1 3 1 . . . . . . . . . . 5 Utility 70 | 2 1 2 1 . 13 2 . . . . 1 . . . 2 1 2 4 2 1 1 1 5 7 2 1 2 17 Device 34 | 1 . . 1 . 7 1 . . . . . . . . 1 . 2 . . . 1 1 3 5 . 1 2 8 Storage 6 | 1 1 . . . 1 . . . . . . . . . . . . . . 1 . . . 1 . . . 1 Processor 8 | . . . . . 2 . . . . . 1 . . . . 1 . . . . . . 2 . . . . 2 Hackware 5 | . . . . . . 1 . . . . . . . . . . . . 2 . . . . . 1 . . 1 Protection 17 | . . 2 . . 3 . . . . . . . . . 1 . . 4 . . . . . 1 1 . . 5 Artifact . | . . . . . . . . . . . . . . . . . . . . . . . . . . . . . Weapon 51 | 3 2 1 . 1 7 2 1 . . . 1 . . 2 2 2 6 2 . 1 2 2 1 3 3 1 . 6 Energy Gun 12 | 1 . . . . . 1 . . . . 1 . . 1 . 2 . . . . . 2 . . 2 . . 2 Energy Cannon 5 | . . . . . . . . . . . . . . . . . . . . . . . 1 . 1 1 . 2 Ballistic Gun 20 | 2 1 1 . . 5 . . . . . . . . . . . 6 2 . 1 . . . 2 . . . . Ballistic Cannon 4 | . . . . . . . 1 . . . . . . . 1 . . . . . 1 . . . . . . 1 Launcher 3 | . . . . . 2 . . . . . . . . . 1 . . . . . . . . . . . . . Special Weapon 2 | . 1 . . . . . . . . . . . . . . . . . . . . . . . . . . 1 Impact Weapon 2 | . . . . 1 . 1 . . . . . . . . . . . . . . . . . . . . . . Slashing Weapon 3 | . . . . . . . . . . . . . . 1 . . . . . . 1 . . 1 . . . . Piercing Weapon . | . . . . . . . . . . . . . . . . . . . . . . . . . . . . . Special Melee Weapon . | . . . . . . . . . . . . . . . . . . . . . . . . . . . . . Unidentified Prototypes 29 | . . . 1 . 4 . . . . 1 . . . . . . 4 3 . . . . 1 . 7 . 1 7 Corrupted Parts 1 | . . . . . . . . . . . . . . . . . . . . . . . . . . . . 1 System Corruption 1 | . . . . . . . . . . . . . . . . . . . . . . . . . . . . 1 Parts Lost 93 | . . . . . 9 . . . . . . . . . 1 . 5 1 . 1 . . 16 . . 4 8 48 Power 10 | . . . . . . . . . . . . . . . . . 1 . . . . . 2 . . 1 1 5 Propulsion 36 | . . . . . 1 . . . . . . . . . . . 4 1 . . . . 9 . . 1 2 18 Utility 33 | . . . . . 4 . . . . . . . . . 1 . . . . . . . 3 . . 2 5 18 Weapon 14 | . . . . . 4 . . . . . . . . . . . . . . 1 . . 2 . . . . 7 Highest Loss Streak 16 | . . . . . 5 . . . . . . . . . 1 . 3 1 . 1 . . 12 . . 2 3 16 To Critical Strikes 2 | . . . . . . . . . . . . . . . . . . 1 . . . . . . . . . 1 Average Backups 12 | 1 6 9 10 10 10 10 10 10 10 10 9 10 10 10 9 8 9 9 10 16 17 18 19 19 19 16 14 15 Power . | . 1 . . 1 . . 1 1 1 1 1 1 1 1 1 1 . 1 1 1 1 1 1 . 1 1 . . Propulsion 1 | . . 1 1 1 1 2 1 1 1 1 1 2 2 2 1 1 . . . 2 2 2 2 1 . . . 3 Utility 5 | . 1 3 4 5 4 3 4 4 4 4 3 4 4 4 4 3 4 4 5 7 7 7 8 11 12 8 6 6 Weapon 3 | . 3 4 3 3 3 4 4 4 4 4 3 3 3 3 3 3 3 3 3 4 5 6 6 4 3 5 5 4 Tool/Special . | . . . . . . . . . . . . . . . . . . . . . . . . . . . . . Unused Backups 42 | . . . . 1 8 2 . . . . 1 . . . 1 . 2 . . 1 . 3 3 1 5 . . 14 Power 3 | . . . . . . 1 . . . . . . . . . . 1 . . . . . . 1 . . . . Propulsion 13 | . . . . . 4 . . . . . . . . . 1 . . . . 1 . 1 2 . 1 . . 3 Utility 15 | . . . . 1 1 . . . . . . . . . . . 1 . . . . 1 1 . 4 . . 6 Weapon 9 | . . . . . 3 1 . . . . 1 . . . . . . . . . . 1 . . . . . 3 Tool/Special 2 | . . . . . . . . . . . . . . . . . . . . . . . . . . . . 2 Average Slot Usage (%) 95 | . 100 100 100 100 97 97 100 100 100 93 95 100 100 100 99 94 91 95 99 99 98 100 98 94 93 99 79 81 Engine 5 | . 14 14 14 14 8 7 7 7 7 7 8 12 12 12 12 11 . . . . . . . . . . . . Core 1 | . . . . . . . . . . . . . . . . . 1 5 5 5 5 5 2 . . . . . Reactor 3 | . . . . . . . . . . . . . . . . . 4 5 5 5 5 5 7 9 10 8 5 7 Treads 3 | . 17 . . . 19 3 . . . . . . . . . . . . . . . . . . . . . . Leg 4 | . 10 28 28 28 7 . . . . . . . . . . . . . . . . . . . . . . 2 Hover 13 | . . . . . . . . . . . . . . . . . 10 28 37 38 35 35 33 32 35 30 21 13 Flight 8 | . . . . . . 32 38 38 38 35 36 37 37 37 37 37 25 5 . . . . . . . . . . Device 11 | . 14 6 14 13 8 7 7 7 7 7 6 6 6 6 5 5 10 5 5 8 15 20 15 13 14 16 13 19 Storage 7 | . 14 14 14 14 9 7 7 7 7 7 6 6 6 6 6 5 5 5 5 5 5 5 5 6 5 5 7 6 Processor 9 | . . . . . 11 8 7 7 7 7 11 12 12 12 12 11 11 11 11 11 10 10 11 15 15 12 5 6 Hackware 3 | . . . . . . 5 7 7 7 7 6 6 6 6 6 5 5 5 4 5 5 5 3 . 2 4 4 5 Protection 2 | . . 7 . . 5 . . . . . . . . . . 5 . 5 5 2 4 . 4 4 1 4 9 1 Energy Gun 3 | . 10 . . . . 5 7 7 7 7 6 6 6 11 10 6 . . . . . 4 9 . 3 . . 3 Ballistic Gun 10 | . 16 27 28 27 23 8 7 7 7 6 5 6 6 . . . 7 11 11 11 10 5 . 8 1 6 1 . Slashing Weapon 2 | . . . . . . . . . . . . . . 5 5 5 4 5 5 4 2 5 4 4 5 4 4 1 Peak Build Rating 160 | 7 8 8 18 14 42 47 49 47 47 49 60 58 58 61 65 82 105 108 107 113 133 131 136 141 147 160 149 153 Average Rating 78 | 5 7 8 10 12 30 44 47 47 47 47 55 58 58 60 60 71 87 103 106 109 130 130 130 127 131 156 128 127 On Entrance 67 | . 7 8 8 12 13 40 47 47 47 47 47 58 58 58 61 56 82 105 106 106 107 131 130 52 136 144 137 110 Naked Turns . | . . . . . . . . . . . . . . . . . . . . . . . . . . . . . Heaviest Build 118 | 14 20 22 19 20 43 36 25 25 25 25 30 30 30 31 33 38 40 56 49 79 86 73 94 108 107 114 109 118 Greatest Support 102 | 40 40 20 20 20 69 63 26 26 26 26 32 32 32 32 33 40 75 75 77 77 81 81 81 85 85 85 85 102 Greatest Overweight (x) 7 | . 1 1 . . 1 1 . . . . . . . . . . 2 . . 1 1 . 5 2 1 1 2 7 Average Overweight (x) . | . . . . . . . . . . . . . . . . . . . . . . . . . . 1 1 1 Largest Inventory Capacity 20 | 8 10 10 10 10 15 15 10 10 10 10 10 10 10 10 10 10 10 10 10 20 20 20 20 20 20 20 20 20 Average Capacity 13 | 7 8 10 10 10 11 10 10 10 10 10 10 10 10 10 10 10 10 10 10 18 20 20 20 20 20 20 20 19 Most Carried 20 | 3 9 10 10 10 15 15 10 10 10 10 10 10 10 10 10 9 10 10 10 20 20 20 20 20 20 19 18 20 Average Carried 12 | 1 6 9 9 9 10 10 10 10 10 10 9 10 10 10 9 8 9 9 10 17 19 19 19 19 19 17 15 17 Final Capacity 20 | 8 10 10 10 10 15 10 10 10 10 10 10 10 10 10 10 10 10 10 10 20 20 20 20 20 20 20 20 5 Final Carried 20 | 3 9 10 10 10 15 10 10 10 10 10 10 10 10 10 9 9 10 10 10 20 20 20 19 20 20 16 13 5 Class Distribution -------------------- 15% | Scout 12% | Mutant 10% | Messiah-Mutant 9% | Scavenger-Mutant 7% | Messiah-Scout 6% | Hacker-Mutant 5% | Scavenger-Gunner 4% | Sprinter 3% | Messiah-Assassin Dominant Class ---------------- Mutant | -10/Materials Mutant | -10/Mines Scavenger-Mutant | -10/Exiles Scavenger-Mutant | -9/Mines Scavenger-Gunner | -8/Materials Sprinter | -7/Factory Sprinter | -7/Lower Caves Sprinter | -7/Lower Caves Sprinter | -7/Data Miner Sprinter | -6/Proximity Caves Scout | -6/Factory Scout | -6/Lower Caves Scout | -6/Lower Caves Scout | -6/Zion Scout | -5/Proximity Caves Scout | -5/Factory Scout | -5/Extension Messiah-Mutant | -5/Cetus Messiah-Mutant | -5/Archives Messiah-Scout | -5/Hub_04(d) Messiah-Scout | -4/Factory Messiah-Scout | -4/Waste Messiah-Assassin | -4/Factory Assassin | -4/Armory Hacker-Scout | -4/Lab Hacker-Assassin | -3/Research Hacker-Mutant | -3/Garrison Hacker-Mutant | -3/Research Resources | -11 -10 -10 -10 -9 -8 -7 -7 -7 -7 -6 -6 -6 -6 -6 -5 -5 -5 -5 -5 -5 -4 -4 -4 -4 -4 -3 -3 -3 ----------- Run | Yrd Mat Min Exi Min Mat Fac Low Low Dat Pro Fac Low Low Zio Pro Fac Ext Cet Arc Hub Fac Was Fac Arm Lab Res Gar Res Matter Collected 6979 | 304 172 260 . 102 1471 242 . 38 . 56 225 21 . 20 307 . 508 129 86 102 . 188 267 747 128 35 47 1524 Remotely 165 | . . . . . 165 . . . . . . . . . . . . . . . . . . . . . . . Salvage Created 7509 | 99 554 194 . 30 2176 73 . . . . 258 31 . . 515 . 257 79 319 412 . . 488 340 128 . 132 1424 Parts 372 | 5 53 12 . 3 110 2 . . . . . . . . 27 . 17 3 23 17 . . 22 14 5 . 5 54 Haulers Intercepted 10 | . 2 . . . 5 . . . . . . . . . . . . . . 2 . . 1 . . . . . Recyclers Shooed 9 | . . 1 . . 5 . . . . . . . . . . . . . . . . . 1 . . . . 2 Parts Field Recycled . | . . . . . . . . . . . . . . . . . . . . . . . . . . . . . Retrieved Matter . | . . . . . . . . . . . . . . . . . . . . . . . . . . . . . Parts Self-Destructed 14 | . . . . . . . . . . . . . . . 14 . . . . . . . . . . . . . Prevented 11 | . . . . . . . . . . . . . . . 11 . . . . . . . . . . . . . Kills | -11 -10 -10 -10 -9 -8 -7 -7 -7 -7 -6 -6 -6 -6 -6 -5 -5 -5 -5 -5 -5 -4 -4 -4 -4 -4 -3 -3 -3 ------- Run | Yrd Mat Min Exi Min Mat Fac Low Low Dat Pro Fac Low Low Zio Pro Fac Ext Cet Arc Hub Fac Was Fac Arm Lab Res Gar Res Combat Hostiles Destroyed 105 | . 14 6 . 1 39 . . . . . . . . . 11 . 1 . . 1 . . 3 6 . . 3 20 Melee 1 | . . . . . 1 . . . . . . . . . . . . . . . . . . . . . . . Guns 64 | . 14 6 . 1 31 . . . . . . . . . . . 1 . . 1 . . 2 6 . . . 2 Cannons 13 | . . . . . . . . . . . . . . . . . . . . . . . . . . . 1 12 AOE 20 | . . . . . 7 . . . . . . . . . 9 . . . . . . . . . . . 2 2 Classes Destroyed 19 | 2 5 . . . 7 . . . . . . 1 . . . . . . . 1 . . 1 2 . . . . Worker 14 | . . . . . 3 . . . . . . . . . . . . . . 4 . . 3 . . . . 4 Builder 12 | . 4 . . . 1 1 . . . . 1 . . . 1 . 2 . . 1 . . . . . . . 1 Tunneler 3 | 1 1 . . . . . . . . . . . . . . . 1 . . . . . . . . . . . Hauler 10 | . 2 . . . 5 . . . . . . . . . . . . . . 2 . . 1 . . . . . Recycler 11 | 1 1 . . . 3 . . . . . 1 . . . . . 1 . . . . . 1 . . . . 3 Minesweeper 1 | . . . . . . . . . . . . 1 . . . . . . . . . . . . . . . . Mechanic 1 | . . . . . 1 . . . . . . . . . . . . . . . . . . . . . . . Operator 13 | . . . . . 1 . . . . . 3 . . . . . . . 9 . . . . . . . . . Watcher 15 | . 1 . . . 4 2 . . . . 2 . . . 2 . . 1 . . . . 1 . . . . 2 Swarmer 34 | . 12 3 . . 10 . . . . . . . . . 5 . . . . . . . . . . . . 4 Grunt 34 | . 2 3 . 1 17 . . . . . . . . . 3 . 1 . . . . . . 3 1 . 3 . Brawler 1 | . . . . . 1 . . . . . . . . . . . . . . . . . . . . . . . Duelist 4 | . . . . . 3 . . . . . . . . . . . . . . . . . . 1 . . . . Sentry 12 | . . . . . 7 . . . . . . . . . 3 . . . . . . . 1 . . . . 1 Demolisher 1 | . . . . . . . . . . . . . . . . . . . . . . . . 1 . . . . Hunter 8 | . . . . . 1 . . . . . . . . . . . . . . 1 . . . . . . . 6 Programmer 11 | . . . . . . . . . . . . . . . . . . . . . . . 2 . . . . 9 Z-Heavy 2 | . . . . . . . . . . . . . . . . . . . . . . . . 1 1 . . . Fireman 1 | . . . . . . . . . . . . . . . . . . . . 1 . . . . . . . . Best Kill Streak 10 | 1 6 3 . 1 6 1 . . . . 3 1 . . 10 . 2 1 5 6 . . 2 2 . . 1 5 Combat Bots Only 8 | . 4 3 . 1 5 . . . . . . . . . 8 . 1 . . 1 . . 1 2 . . 1 3 Max Kills in Single Turn 7 | 1 2 1 . 1 3 1 . . . . 1 1 . . 4 . 1 1 1 7 . . 1 1 1 . 1 1 Gunslinging 1 | . 1 . . . 1 . . . . . . . . . . . . . . . . . . . . . . . Exploded 4 | . . . . . 2 . . . . . . . . . 4 . . . . . . . . . . . 1 1 Melee 1 | . . . . . 1 . . . . . . . . . . . . . . . . . . . . . . . Uniques/NPCs Destroyed 1 | . . . . . . . . . . . . . . . . . . 1 . . . . . . . . . . A7 (-5/Cetus) Combat | -11 -10 -10 -10 -9 -8 -7 -7 -7 -7 -6 -6 -6 -6 -6 -5 -5 -5 -5 -5 -5 -4 -4 -4 -4 -4 -3 -3 -3 -------- Run | Yrd Mat Min Exi Min Mat Fac Low Low Dat Pro Fac Low Low Zio Pro Fac Ext Cet Arc Hub Fac Was Fac Arm Lab Res Gar Res Hostile Shots Fired 1056 | . 49 29 . 3 142 . . . . . 6 . . . 34 . 22 3 2 20 . . 119 42 . 35 108 442 Missed 353 | . 10 8 . . 46 . . . . . 4 . . . 20 . 10 1 2 7 . . 35 9 . 14 39 148 Hits 703 | . 39 21 . 3 96 . . . . . 2 . . . 14 . 12 2 . 13 . . 84 33 . 21 69 294 Melee 8 | . . . . . 6 . . . . . . . . . . . . . . . . . 1 1 . . . . Projectile 695 | . 39 21 . 3 90 . . . . . 2 . . . 14 . 12 2 . 13 . . 83 32 . 21 69 294 AOE 4 | . . . . . . . . . . . . . . . . . 2 . . 1 . . . 1 . . . . Critical Strikes 42 | . . . . . 5 . . . . . . . . . . . . 2 . . . . 2 2 . 3 5 23 Actively Blocked 2 | . . . . . . . . . . . . . . . . . . . . . . . . . . . . 2 Part Disruptions 1 | . . . . . . . . . . . . . . . . . . . . . . . . . . . . 1 Damage Taken 13230 | . 334 292 . 41 1521 . . . . . 11 . . . 356 . 371 66 . 323 . . 1968 536 . 690 1572 5149 Core 2008 | . 69 54 . . 175 . . . . . 5 . . . 108 . 45 . . 118 . . 146 64 . 22 336 866 Absorbed by Shields 1044 | . . . . . . . . . . . . . . . . . 90 14 . . . . . 236 . 36 . 668 Redirected to Shielding 452 | . . . . . . . . . . . . . . . . . . . . . . . . . . . 140 312 Ignored by Resistances 235 | . . . . . . . . . . . . . . . . . . . . . . . . . . . . 235 Regen/Repaired (Parts) 782 | . . . . . . . . . . . . . . . . 21 . 28 87 18 . 30 16 343 51 33 155 . Core Remaining (%) 83 | 100 . . . 50 68 . . . . 100 . . . . 86 . . . . 83 . . . . 100 . . . Volleys Fired 575 | 8 57 24 . 3 136 2 3 . . 12 9 . . . 19 . 25 8 2 7 1 . 25 43 . 11 18 162 Largest 3 | 2 2 2 . 2 3 1 1 . . 1 1 . . . 2 . 2 2 2 3 1 . 2 2 . 1 1 1 Hottest 200 | 60 100 100 . 40 74 28 40 . . 56 40 . . . 86 . 61 68 70 98 47 . 162 120 . 120 200 120 Shots Fired 944 | 16 101 46 . 6 353 2 3 . . 12 9 . . . 20 . 29 16 4 15 1 . 46 72 . 11 18 164 Gun 690 | 16 89 44 . 6 341 2 . . . 4 . . . . 1 . 10 16 4 14 . . 42 58 . . . 43 Cannon 191 | . . . . . . . 3 . . 8 9 . . . 2 . 19 . . 1 1 . 4 5 . 11 18 110 Launcher 49 | . . . . . 12 . . . . . . . . . 17 . . . . . . . . 9 . . . 11 Special 14 | . 12 2 . . . . . . . . . . . . . . . . . . . . . . . . . . Kinetic 666 | 8 50 44 . 6 341 2 3 . . 8 9 . . . 2 . 29 16 4 15 1 . . 58 . . . 70 Thermal 178 | 8 51 2 . . . . . . . 4 . . . . . . . . . . . . 46 5 . 11 18 33 Explosive 27 | . . . . . 6 . . . . . . . . . 7 . . . . . . . . 3 . . . 11 Electromagnetic 73 | . . . . . 6 . . . . . . . . . 11 . . . . . . . . 6 . . . 50 Robot Hit Streak 17 | 5 15 17 . 6 14 . . . . . . . . . 7 . 4 4 3 6 . . 9 4 . 2 2 8 Robot Miss Streak 7 | 2 3 3 . . 5 . . . . . . . . . 5 . 3 2 . 6 . . 7 4 . 3 1 5 Penetration Max 1 | . . . . . 1 . . . . . . . . . . . . . . . . . . 1 . . . 1 Secondary Targets 7 | . 1 . . . 4 . . . . . . . . . . . 1 . . . . . 1 . . . . . Max Gunslinging Chain 1 | . 1 . . . 1 . . . . . . . . . . . 1 . . . . . 1 . . . . . Shots Hit Robots 583 | 10 58 25 . 5 239 3 . . . . 8 1 . . 7 2 19 15 12 4 . . 35 33 7 2 3 95 Core Hits 318 | 3 28 11 . 3 124 1 . . . . . . . . 25 . 9 4 6 17 . . 14 23 1 . 2 47 Critical Kills 5 | . . . . . 1 1 . . . . . . . . . . . 1 . 1 . . . 1 . . . . Critical Parts Destroyed 15 | . . . . . 6 1 . . . . 3 1 . . . . . . . . . . . 4 . . . . Critical Strikes 37 | . . . . . 7 2 . . . . 3 1 . . . . 2 2 . 1 . . 4 5 2 . . 8 Burn 4 | . . . . . . . . . . . . . . . . . . . . . . . 4 . . . . . Destroy 13 | . . . . . 6 . . . . . . . . . . . . 1 . 1 . . . 5 . . . . Blast 5 | . . . . . . . . . . . . . . . . . 2 . . . . . . . . . . 3 Corrupt 5 | . . . . . . . . . . . . . . . . . . . . . . . . . . . . 5 Smash 7 | . . . . . 1 2 . . . . 3 1 . . . . . . . . . . . . . . . . Sever 3 | . . . . . . . . . . . . . . . . . . 1 . . . . . . 2 . . . Melee Attacks 166 | . . . . 2 12 10 4 3 . 6 22 6 . . 10 12 6 8 10 1 2 . 13 8 27 4 . . Impact 65 | . . . . 2 12 10 4 3 . 6 22 6 . . . . . . . . . . . . . . . . Slashing 101 | . . . . . . . . . . . . . . . 10 12 6 8 10 1 2 . 13 8 27 4 . . Piercing . | . . . . . . . . . . . . . . . . . . . . . . . . . . . . . Sneak Attacks 48 | . . . . . 5 1 . . . . 5 1 . . . 1 2 8 9 1 . . 8 . 7 . . . Combat Hostiles . | . . . . . . . . . . . . . . . . . . . . . . . . . . . . . Follow-up Attacks . | . . . . . . . . . . . . . . . . . . . . . . . . . . . . . Damage Inflicted 20954 | 131 747 280 . 52 4928 218 . . . . 621 85 . . 1286 142 951 704 1195 737 . . 1545 1267 555 90 724 4696 Guns 7456 | 131 747 280 . 52 3342 . . . . . . . . . . . 164 172 111 105 . . 864 935 . . . 553 Cannons 4106 | . . . . . . . . . . . . . . . . . 489 . . . . . . . . 90 426 3101 Explosions 4542 | . . . . . 1041 . . . . . . . . . 1286 . . . . 543 . . . 332 . . 298 1042 Melee 4832 | . . . . . 527 218 . . . . 621 85 . . . 142 298 532 1084 89 . . 681 . 555 . . . Ramming 18 | . . . . . 18 . . . . . . . . . . . . . . . . . . . . . . . Kinetic 8245 | 96 472 280 . 52 3342 . . . . . . . . . . . 653 172 111 105 . . . 935 . . . 2027 Thermal 2884 | 35 275 . . . 93 . . . . . . . . . . . . . . . . . 864 . . 90 724 803 Explosive 2948 | . . . . . 797 . . . . . . . . . 830 . . . . . . . . 332 . . . 989 Electromagnetic 2027 | . . . . . 151 . . . . . . . . . 456 . . . . 543 . . . . . . . 877 Impact 1451 | . . . . . 527 218 . . . . 621 85 . . . . . . . . . . . . . . . . Slashing 3381 | . . . . . . . . . . . . . . . . 142 298 532 1084 89 . . 681 . 555 . . . Piercing . | . . . . . . . . . . . . . . . . . . . . . . . . . . . . . Highest Corruption 27 | . . . . . . . . . . . . . . . . . . . . 2 . . 7 7 4 4 7 27 Average Corruption 7 | . . . . . . . . . . . . . . . . . . . . 1 . . 2 3 4 1 5 12 Corruption Purged 5 | . . . . . . . . . . . . . . . . . . . . . . . . 5 . . . . Corruption Blocked . | . . . . . . . . . . . . . . . . . . . . . . . . . . . . . Effects 150 | . . . . . . . . . . . . . . . . . . . . . . . 16 18 18 1 8 89 Message Errors 37 | . . . . . . . . . . . . . . . . . . . . . . . 3 9 3 . 1 21 Matter Fused 34 | . . . . . . . . . . . . . . . . . . . . . . . 3 4 7 . 2 18 Heat Flow Errors 14 | . . . . . . . . . . . . . . . . . . . . . . . 1 2 2 . 3 6 Energy Discharges 13 | . . . . . . . . . . . . . . . . . . . . . . . 2 1 . . 1 9 Parts Rejected 3 | . . . . . . . . . . . . . . . . . . . . . . . . 1 . 1 . 1 Parts Fused 1 | . . . . . . . . . . . . . . . . . . . . . . . . . . . . 1 Data Loss (minor) 18 | . . . . . . . . . . . . . . . . . . . . . . . 3 1 4 . 1 9 Data Loss (major) 7 | . . . . . . . . . . . . . . . . . . . . . . . . . 2 . . 5 Misfires 11 | . . . . . . . . . . . . . . . . . . . . . . . 2 . . . . 9 Alerts 2 | . . . . . . . . . . . . . . . . . . . . . . . . . . . . 2 Misdirections 1 | . . . . . . . . . . . . . . . . . . . . . . . . . . . . 1 Weapon Failures 9 | . . . . . . . . . . . . . . . . . . . . . . . 2 . . . . 7 Overload Shots . | . . . . . . . . . . . . . . . . . . . . . . . . . . . . . Overflow Damage 2044 | . . . . . 128 131 . . . . 481 85 . . 32 52 49 . 378 59 . . 130 . 76 . 211 232 Projectiles 393 | . . . . . . . . . . . . . . . . . . . . . . . . . . . 161 232 Explosions 91 | . . . . . 9 . . . . . . . . . 32 . . . . . . . . . . . 50 . Melee 1560 | . . . . . 119 131 . . . . 481 85 . . . 52 49 . 378 59 . . 130 . 76 . . . Knockbacks 28 | . . . . . 1 1 . . . . 5 . . . . . . . . . . . . . . . . 21 Impact 7 | . . . . . 1 1 . . . . 5 . . . . . . . . . . . . . . . . . Kinetic 21 | . . . . . . . . . . . . . . . . . . . . . . . . . . . . 21 Secondary . | . . . . . . . . . . . . . . . . . . . . . . . . . . . . . Self-Inflicted Damage 305 | . . . . . 38 . . . . . . . . . 79 . . . . 97 . . . 27 . . 64 . Shots 8 | . . . . . 2 . . . . . . . . . 3 . . . . 1 . . . 1 . . 1 . Rammed 2 | . . . . . 2 . . . . . . . . . . . . . . . . . . . . . . . Targets Rammed 2 | . . . . . 2 . . . . . . . . . . . . . . . . . . . . . . . Kicked . | . . . . . . . . . . . . . . . . . . . . . . . . . . . . . Crushed . | . . . . . . . . . . . . . . . . . . . . . . . . . . . . . Highest Temperature 329 | . 184 42 . 48 126 3 3 3 3 48 308 99 302 132 134 322 107 84 32 75 318 . 276 329 187 78 209 308 Average Temperature 61 | . 70 13 . 26 29 2 2 2 2 9 97 39 101 38 21 113 16 17 9 17 153 . 81 103 74 28 36 64 Received Heat Transfer 1548 | . 60 150 . 24 549 . . . . . . . . . 27 . 48 . . 9 . . 219 103 . 21 217 121 Effects 10 | . . . . . . . . . . . 2 . 1 . . 2 . . . . . . . 4 . . . 1 Energy Bleed 6 | . . . . . . . . . . . 2 . 1 . . 2 . . . . . . . . . . . 1 Interference 4 | . . . . . . . . . . . . . . . . . . . . . . . . 4 . . . . Siege Activations . | . . . . . . . . . . . . . . . . . . . . . . . . . . . . . Martial Activations . | . . . . . . . . . . . . . . . . . . . . . . . . . . . . . Shielding Activations . | . . . . . . . . . . . . . . . . . . . . . . . . . . . . . Robots Disrupted . | . . . . . . . . . . . . . . . . . . . . . . . . . . . . . Combat Hostiles . | . . . . . . . . . . . . . . . . . . . . . . . . . . . . . Robots Corrupted 12 | . . . . . 1 1 . . . . 4 . . . 2 . . . . . . . . . . . . 4 Combat Hostiles 6 | . . . . . . . . . . . . . . . 2 . . . . . . . . . . . . 4 Parts Fried 29 | . . . . . 5 3 . . . . 12 1 . . 4 . . . . 1 . . . . . . . 3 Impact Corruptions 21 | . . . . . 4 3 . . . . 12 2 . . . . . . . . . . . . . . . . Robots Melted 1 | . . . . . . . . . . . . . . . . . . . . . . . 1 . . . . . Combat Hostiles 1 | . . . . . . . . . . . . . . . . . . . . . . . 1 . . . . . Parts Melted 8 | . 1 . . . . . . . . . . . . . . . . . . . . . 3 1 . . . 3 Heat Transferred 3528 | 75 600 . . . 150 . . . . . . . . . . . . . . . . . 1295 . . 74 470 864 Parts Sabotaged . | . . . . . . . . . . . . . . . . . . . . . . . . . . . . . Parts Stolen . | . . . . . . . . . . . . . . . . . . . . . . . . . . . . . Parts Stripped . | . . . . . . . . . . . . . . . . . . . . . . . . . . . . . Power Chain Reactions 3 | . . . . . 2 . . . . . . . . . . . . . . . . . . . . . . 1 Alert | -11 -10 -10 -10 -9 -8 -7 -7 -7 -7 -6 -6 -6 -6 -6 -5 -5 -5 -5 -5 -5 -4 -4 -4 -4 -4 -3 -3 -3 ------- Run | Yrd Mat Min Exi Min Mat Fac Low Low Dat Pro Fac Low Low Zio Pro Fac Ext Cet Arc Hub Fac Was Fac Arm Lab Res Gar Res Maximum Alert Level 4 | . . . . . 2 1 . . . . . . . . . . 1 . 1 3 2 . 1 4 . . . 1 Low Security (%) 76 | 100 100 100 . 100 24 . . . . . 100 . . . . 100 94 100 96 79 . 100 96 49 . 100 100 93 Level 1 11 | . . . . . 28 100 . . . . . . . . . . 5 . 3 . 64 . 3 9 . . . 6 Level 2 9 | . . . . . 47 . . . . . . . . . . . . . . . 35 . . 6 . . . . Level 3 2 | . . . . . . . . . . . . . . . . . . . . 20 . . . 29 . . . . Level 4 . | . . . . . . . . . . . . . . . . . . . . . . . . 4 . . . . Level 5 . | . . . . . . . . . . . . . . . . . . . . . . . . . . . . . High Security . | . . . . . . . . . . . . . . . . . . . . . . . . . . . . . Max Security . | . . . . . . . . . . . . . . . . . . . . . . . . . . . . . Peak Influence 1267 | 5 159 106 . 89 615 367 . . . . 85 . . . . 138 219 196 200 975 428 123 222 1267 . 84 183 245 Initial 426 | . . 36 . . . 268 . . . . . . . . . 138 . 102 56 . 426 123 . . . . . 88 Average 150 | . 68 28 . 23 334 315 . . . . 13 . . . . 72 54 130 54 280 391 55 82 422 . 3 78 65 Influence Increases 9545 | 10 426 152 . 97 1304 239 . . . . 250 5 . . 574 29 674 334 294 1246 6 36 584 1887 . 121 238 1039 Destroy 0b10 Robot/C 3920 | . 280 120 . 60 780 . . . . . . . . . 320 . 360 160 80 140 . . 240 780 . 40 60 500 Destroy 0b10 Robot/NC 465 | 10 45 . . . 90 15 . . . . 35 5 . . 15 . 55 10 45 40 . . 30 10 . 10 . 50 Destroy Leader 744 | . 56 30 . 10 208 4 . . . . 4 . . . 30 . 34 . . 46 . . 42 134 . 22 . 124 Allied During Kill 1540 | . . . . 4 . . . . . . . . . . 74 . 193 152 125 220 . . 160 554 . 23 . 35 Successful Hack 117 | . 41 . . 6 24 21 . . . . 15 . . . . . . 10 . . . . . . . . . . Select Force Hacks 60 | . . . . . 30 30 . . . . . . . . . . . . . . . . . . . . . . Disable Machine 690 | . . . . 15 75 15 . . . . 15 . . . . . . . 30 285 . . 30 180 . . 15 30 Anti-Garrison Action 150 | . . . . . . . . . . . . . . . . . . . . 150 . . . . . . . . Destroy Structure 1139 | . 4 2 . 2 52 4 . . . . 16 . . . . 14 32 2 14 320 6 36 82 154 . 26 163 210 Partial Spotted 195 | . . . . . . 90 . . . . 60 . . . . 15 . . . 30 . . . . . . . . Lose Combat Pursuer 525 | . . . . . 45 60 . . . . 105 . . . 135 . . . . 15 . . . 75 . . . 90 Influence Decreases 9372 | 10 331 247 . 97 712 514 179 77 61 . 165 90 . . 354 249 491 377 434 376 524 388 584 620 1267 121 80 1024 Entered New Map 2879 | . . 59 . . . 324 119 27 61 . . 32 . . . 82 . 81 84 . 444 229 . . 1267 . . 70 Time Decay 4595 | 10 331 188 . 97 606 190 60 50 . . 165 58 . . 184 167 328 206 290 196 80 159 378 340 . 40 . 472 Lost Part 762 | . . . . . 90 . . . . . . . . . 10 . 43 10 . 10 . . 96 . . 21 80 402 Lost Ally 1136 | . . . . . 16 . . . . . . . . . 160 . 120 80 60 170 . . 110 280 . 60 . 80 Squads Dispatched 47 | . 3 1 . . 7 2 . . . . 2 . . . 1 3 1 . . 7 . . 4 5 . 3 . 8 Investigation 7 | . . 1 . . 2 1 . . . . . . . . . 1 1 . . 1 . . . . . . . . Extermination 12 | . . . . . . 1 . . . . 1 . . . . 1 . . . . . . 2 2 . 1 . 4 Reinforcement 19 | . 3 . . . 4 . . . . . 1 . . . 1 1 . . . 4 . . . 2 . 1 . 2 Assault 8 | . . . . . 1 . . . . . . . . . . . . . . 2 . . 2 1 . . . 2 Garrison 1 | . . . . . . . . . . . . . . . . . . . . . . . . . . 1 . . Intercept . | . . . . . . . . . . . . . . . . . . . . . . . . . . . . . Searches Triggered . | . . . . . . . . . . . . . . . . . . . . . . . . . . . . . Construction Impeded 4 | . . . . . 2 . . . . . . . . . 1 1 . . . . . . . . . . . . Haulers Reinforced 1 | . . . . . . . . . . . . . . . . . . . . . . . . . . . . 1 Active Scanning Responses . | . . . . . . . . . . . . . . . . . . . . . . . . . . . . . Cargo Convoy Interrupts . | . . . . . . . . . . . . . . . . . . . . . . . . . . . . . Stealth | -11 -10 -10 -10 -9 -8 -7 -7 -7 -7 -6 -6 -6 -6 -6 -5 -5 -5 -5 -5 -5 -4 -4 -4 -4 -4 -3 -3 -3 --------- Run | Yrd Mat Min Exi Min Mat Fac Low Low Dat Pro Fac Low Low Zio Pro Fac Ext Cet Arc Hub Fac Was Fac Arm Lab Res Gar Res Distress Signals 19 | . 2 . . . 7 . . . . . . . . . 1 . . 2 . 1 . . . 4 . 1 . 1 Communications Jammed 91 | . . . . . . . . . . . . . . . . . . . . . . . 10 24 . . . 57 Distress Signals 91 | . . . . . . . . . . . . . . . . . . . . . . . 10 24 . . . 57 Times Spotted 300 | . 22 6 . 3 62 9 . . . . 6 . . . 26 2 11 7 4 7 1 6 24 38 . 13 5 48 Peak Tracking Total 10 | . 4 2 . 3 5 3 . . . . 6 . . . 7 1 3 5 1 2 . 4 10 6 . 9 2 10 Tactical Retreats 21 | . . . . . 2 2 . . . . 3 . . . 5 . . . . 1 . . . 3 . . . 5 Traps | -11 -10 -10 -10 -9 -8 -7 -7 -7 -7 -6 -6 -6 -6 -6 -5 -5 -5 -5 -5 -5 -4 -4 -4 -4 -4 -3 -3 -3 ------- Run | Yrd Mat Min Exi Min Mat Fac Low Low Dat Pro Fac Low Low Zio Pro Fac Ext Cet Arc Hub Fac Was Fac Arm Lab Res Gar Res Traps Triggered 16 | . . . . . 3 1 . . . . . . . . . 1 3 . . . 1 . 3 1 . . 1 2 Indirectly 1 | . . . . . . . . . . . . . . . . . . . . . . . . 1 . . . . Trap Hack Attempts . | . . . . . . . . . . . . . . . . . . . . . . . . . . . . . Triggered . | . . . . . . . . . . . . . . . . . . . . . . . . . . . . . Disarmed . | . . . . . . . . . . . . . . . . . . . . . . . . . . . . . Reprogrammed . | . . . . . . . . . . . . . . . . . . . . . . . . . . . . . Reused . | . . . . . . . . . . . . . . . . . . . . . . . . . . . . . Traps Extracted . | . . . . . . . . . . . . . . . . . . . . . . . . . . . . . Installed . | . . . . . . . . . . . . . . . . . . . . . . . . . . . . . Triggered . | . . . . . . . . . . . . . . . . . . . . . . . . . . . . . Machines | -11 -10 -10 -10 -9 -8 -7 -7 -7 -7 -6 -6 -6 -6 -6 -5 -5 -5 -5 -5 -5 -4 -4 -4 -4 -4 -3 -3 -3 ---------- Run | Yrd Mat Min Exi Min Mat Fac Low Low Dat Pro Fac Low Low Zio Pro Fac Ext Cet Arc Hub Fac Was Fac Arm Lab Res Gar Res Machines Disabled 53 | . . . . 1 5 1 1 . . . 1 . . . . . . . 2 20 . . 2 12 5 . 1 2 Max in Single Turn 19 | . . . . . 1 1 1 . . . 1 . . . . . . . . 19 . . 1 3 1 . 1 1 Garrison Access 6 | . . . . . . 1 . . . . 1 . . . . . . . . 1 . . 1 . . . . 2 Network Hub 3 | . . . . . . . . . . . . . . . . . . . . 3 . . . . . . . . Energy Cycler 2 | . . . . . . . . . . . . . . . . . 2 . . . . . . . . . . . Machines Repaired . | . . . . . . . . . . . . . . . . . . . . . . . . . . . . . Machines Dismantled . | . . . . . . . . . . . . . . . . . . . . . . . . . . . . . Machines Sabotaged . | . . . . . . . . . . . . . . . . . . . . . . . . . . . . . Overloaded Fab Kills . | . . . . . . . . . . . . . . . . . . . . . . . . . . . . . Hacking | -11 -10 -10 -10 -9 -8 -7 -7 -7 -7 -6 -6 -6 -6 -6 -5 -5 -5 -5 -5 -5 -4 -4 -4 -4 -4 -3 -3 -3 --------- Run | Yrd Mat Min Exi Min Mat Fac Low Low Dat Pro Fac Low Low Zio Pro Fac Ext Cet Arc Hub Fac Was Fac Arm Lab Res Gar Res Machines Accessed 52 | . 7 1 4 1 6 9 . . 4 . 7 . . . 1 2 2 2 . . 1 . 1 . 1 1 . 2 Terminals 24 | . 6 . . 1 5 4 . . . . 5 . . . 1 . . 2 . . . . . . . . . . Fabricators 1 | . . . . . . 1 . . . . . . . . . . . . . . . . . . . . . . Repair Stations 1 | . . . . . . . . . . . . . . . . 1 . . . . . . . . . . . . Recycling Units 9 | . 1 . . . 1 2 . . . . 1 . . . . 1 2 . . . . . . . . . . 1 Scanalyzers 1 | . . . . . . . . . . . . . . . . . . . . . 1 . . . . . . . Garrison Access 6 | . . . . . . 2 . . . . 1 . . . . . . . . . . . 1 . . 1 . 1 Total Hacks 189 | . 27 1 49 2 20 21 . . 26 . 13 . . . 1 2 5 9 . . 2 . 6 . 1 1 . 3 Successful 142 | . 18 1 49 1 12 10 . . 26 . 9 . . . 1 1 2 5 . . 2 . . . 1 1 . 3 Failed 46 | . 8 . . 1 8 11 . . . . 4 . . . . 1 3 4 . . . . 6 . . . . . Catastrophic 7 | . . . . . 2 . . . . . 2 . . . . . 1 1 . . . . 1 . . . . . Database Lockouts 1 | . 1 . . . . . . . . . . . . . . . . . . . . . . . . . . . Manual 130 | . 24 . 1 2 17 9 . . . . 7 . . . . 15 10 1 . 6 3 . 12 15 . . 2 6 Terminals 76 | . 25 . . 2 18 10 . . . . 11 . . . 1 . . 9 . . . . . . . . . . Fabricators 1 | . . . . . . 1 . . . . . . . . . . . . . . . . . . . . . . Repair Stations 1 | . . . . . . . . . . . . . . . . 1 . . . . . . . . . . . . Recycling Units 16 | . 2 . . . 2 3 . . . . 1 . . . . 1 5 . . . . . . . . . . 2 Scanalyzers 2 | . . . . . . . . . . . . . . . . . . . . . 2 . . . . . . . Garrison Access 16 | . . . . . . 7 . . . . 1 . . . . . . . . . . . 6 . . 1 . 1 Terminal Hacks 99 | . 3 1 49 1 7 1 . . 26 . 4 . . . 1 . . 5 . . . . . . 1 . . . Record 66 | . . . 49 . . . . . 11 . 1 . . . . . . 4 . . . . . . 1 . . . Part Schematic 9 | . . . . . . . . . 8 . 1 . . . . . . . . . . . . . . . . . Robot Schematic 4 | . . . . . . . . . 4 . . . . . . . . . . . . . . . . . . . Robot Analysis 2 | . 1 . . . 1 . . . . . . . . . . . . . . . . . . . . . . . Prototype ID Bank 5 | . . . . . 1 . . . 3 . 1 . . . . . . . . . . . . . . . . . Open Door 3 | . . 1 . . . . . . . . . . . . 1 . . 1 . . . . . . . . . . Branch Access Points 2 | . . . . . . 1 . . . . 1 . . . . . . . . . . . . . . . . . Terminal Index 1 | . 1 . . . . . . . . . . . . . . . . . . . . . . . . . . . Locate Traps 2 | . 1 . . . 1 . . . . . . . . . . . . . . . . . . . . . . . Recall Investigation 1 | . . . . . 1 . . . . . . . . . . . . . . . . . . . . . . . Hauler Manifests 1 | . . . . . 1 . . . . . . . . . . . . . . . . . . . . . . . Registered Components 1 | . . . . . 1 . . . . . . . . . . . . . . . . . . . . . . . Zone Layout 2 | . . . . 1 1 . . . . . . . . . . . . . . . . . . . . . . . Fabricator Hacks 1 | . . . . . . 1 . . . . . . . . . . . . . . . . . . . . . . Network Status 1 | . . . . . . 1 . . . . . . . . . . . . . . . . . . . . . . Repair Station Hacks . | . . . . . . . . . . . . . . . . . . . . . . . . . . . . . Recycling Unit Hacks 8 | . 1 . . . . 2 . . . . 1 . . . . . 2 . . . . . . . . . . 2 Report Inventory 7 | . 1 . . . . 2 . . . . 1 . . . . . 2 . . . . . . . . . . 1 Retrieve Components 1 | . . . . . . . . . . . . . . . . . . . . . . . . . . . . 1 Scanalyzer 2 | . . . . . . . . . . . . . . . . . . . . . 2 . . . . . . . Insert Component 1 | . . . . . . . . . . . . . . . . . . . . . 1 . . . . . . . Analyze 1 | . . . . . . . . . . . . . . . . . . . . . 1 . . . . . . . Garrison Access Hacks 4 | . . . . . . 1 . . . . 1 . . . . . . . . . . . . . . 1 . 1 Unlock Access 1 | . . . . . . . . . . . . . . . . . . . . . . . . . . 1 . . Seal Access 3 | . . . . . . 1 . . . . 1 . . . . . . . . . . . . . . . . 1 Unauthorized Hacks 28 | . 14 . . . 5 5 . . . . 3 . . . . 1 . . . . . . . . . . . . Terminals 25 | . 14 . . . 4 4 . . . . 3 . . . . . . . . . . . . . . . . . Assimilate 2 | . 2 . . . . . . . . . . . . . . . . . . . . . . . . . . . Botnet 16 | . 5 . . . 4 4 . . . . 3 . . . . . . . . . . . . . . . . . Operators 1 | . 1 . . . . . . . . . . . . . . . . . . . . . . . . . . . Skim 6 | . 6 . . . . . . . . . . . . . . . . . . . . . . . . . . . Fabricators . | . . . . . . . . . . . . . . . . . . . . . . . . . . . . . Repair Stations 1 | . . . . . . . . . . . . . . . . 1 . . . . . . . . . . . . Patch 1 | . . . . . . . . . . . . . . . . 1 . . . . . . . . . . . . Recycling Units 2 | . . . . . 1 1 . . . . . . . . . . . . . . . . . . . . . . Tunnel 2 | . . . . . 1 1 . . . . . . . . . . . . . . . . . . . . . . Scanalyzers . | . . . . . . . . . . . . . . . . . . . . . . . . . . . . . Garrison Access . | . . . . . . . . . . . . . . . . . . . . . . . . . . . . . Data Cores Recovered 2 | . . . . . . . . . . . 2 . . . . . . . . . . . . . . . . . Used 1 | . . . . . . . . . . . 1 . . . . . . . . . . . . . . . . . Hacking Detections 32 | . 4 . . 1 4 8 . . . . 6 . . . 1 1 1 3 . . 1 . 1 . . 1 . . Full Trace Events 1 | . . . . . . . . . . . . . . . . . 1 . . . . . . . . . . . Feedback Events . | . . . . . . . . . . . . . . . . . . . . . . . . . . . . . Feedback Blocked . | . . . . . . . . . . . . . . . . . . . . . . . . . . . . . Robot Schematics Acquired 4 | . . . . . . . . . 4 . . . . . . . . . . . . . . . . . . . Robots Built . | . . . . . . . . . . . . . . . . . . . . . . . . . . . . . Authchips . | . . . . . . . . . . . . . . . . . . . . . . . . . . . . . Time . | . . . . . . . . . . . . . . . . . . . . . . . . . . . . . Total Robot Build Rating . | . . . . . . . . . . . . . . . . . . . . . . . . . . . . . Part Schematics Acquired 19 | . . . . . . . . . 8 . 1 . . . . 9 . . . . 1 . . . . . . . Parts Built . | . . . . . . . . . . . . . . . . . . . . . . . . . . . . . Authchips . | . . . . . . . . . . . . . . . . . . . . . . . . . . . . . Time . | . . . . . . . . . . . . . . . . . . . . . . . . . . . . . Total Part Build Rating . | . . . . . . . . . . . . . . . . . . . . . . . . . . . . . Parts Repaired . | . . . . . . . . . . . . . . . . . . . . . . . . . . . . . Time . | . . . . . . . . . . . . . . . . . . . . . . . . . . . . . Parts Recycled . | . . . . . . . . . . . . . . . . . . . . . . . . . . . . . Recycled Matter . | . . . . . . . . . . . . . . . . . . . . . . . . . . . . . Retrieved Matter . | . . . . . . . . . . . . . . . . . . . . . . . . . . . . . Retrieved Components 3 | . . . . . . . . . . . . . . . . . . . . . . . . . . . . 3 Parts Scanalyzed 1 | . . . . . . . . . . . . . . . . . . . . . 1 . . . . . . . Part Schematics Acquired 1 | . . . . . . . . . . . . . . . . . . . . . 1 . . . . . . . Parts Damaged . | . . . . . . . . . . . . . . . . . . . . . . . . . . . . . Bothacking | -11 -10 -10 -10 -9 -8 -7 -7 -7 -7 -6 -6 -6 -6 -6 -5 -5 -5 -5 -5 -5 -4 -4 -4 -4 -4 -3 -3 -3 ------------ Run | Yrd Mat Min Exi Min Mat Fac Low Low Dat Pro Fac Low Low Zio Pro Fac Ext Cet Arc Hub Fac Was Fac Arm Lab Res Gar Res Used RIF Installer . | . . . . . . . . . . . . . . . . . . . . . . . . . . . . . Robots Hacked . | . . . . . . . . . . . . . . . . . . . . . . . . . . . . . Non-combat . | . . . . . . . . . . . . . . . . . . . . . . . . . . . . . Combat . | . . . . . . . . . . . . . . . . . . . . . . . . . . . . . Robot Hacks Applied . | . . . . . . . . . . . . . . . . . . . . . . . . . . . . . Relay Couplers Released 6 | . . . . . . . . . . . . . . . . . . . . 3 . . 3 . . . . . Machine Destruction 6 | . . . . . . . . . . . . . . . . . . . . 3 . . 3 . . . . . Fabnet Peak Effective % . | . . . . . . . . . . . . . . . . . . . . . . . . . . . . . Robots Rewired 14 | . . . 3 . . . . . . . . . . . . . . . . . . . . 11 . . . . Allies Hacked . | . . . . . . . . . . . . . . . . . . . . . . . . . . . . . Hacks Repelled . | . . . . . . . . . . . . . . . . . . . . . . . . . . . . . Allies | -11 -10 -10 -10 -9 -8 -7 -7 -7 -7 -6 -6 -6 -6 -6 -5 -5 -5 -5 -5 -5 -4 -4 -4 -4 -4 -3 -3 -3 -------- Run | Yrd Mat Min Exi Min Mat Fac Low Low Dat Pro Fac Low Low Zio Pro Fac Ext Cet Arc Hub Fac Was Fac Arm Lab Res Gar Res Total Allies 92 | . . . 3 . . . . . . . . . . 9 . 4 17 5 . 4 . 18 1 27 . . . 4 Largest Group 18 | . . . 3 1 1 . . . . . . . . 9 9 4 14 13 10 9 . 18 11 12 5 3 . 2 Highest-Rated Group 845 | . . . 37 21 21 . . . . . . . . 277 277 237 574 845 611 525 . 638 442 687 284 141 . 206 Highest-Rated Ally 159 | . . . 21 21 21 . . . . . . . . 39 39 70 159 159 96 96 . 50 50 103 103 47 . 103 Zionite Dispatches 14 | . . . . . . . . . . . . . . . . 2 4 . . 2 . . 1 3 . . . 2 Heavy 4 | . . . . . . . . . . . . . . . . . . . . . . . . 2 . . . 2 Light 2 | . . . . . . . . . . . . . . . . 1 1 . . . . . . . . . . . Fire 2 | . . . . . . . . . . . . . . . . . 1 . . 1 . . . . . . . . Hacker 2 | . . . . . . . . . . . . . . . . . 1 . . . . . . 1 . . . . Thermal Resupply 1 | . . . . . . . . . . . . . . . . 1 . . . . . . . . . . . . Kinetic Resupply 1 | . . . . . . . . . . . . . . . . . 1 . . . . . . . . . . . Offense Resupply 1 | . . . . . . . . . . . . . . . . . . . . . . . 1 . . . . . Heavy Resupply 1 | . . . . . . . . . . . . . . . . . . . . 1 . . . . . . . . Total Orders 22 | . . . . . . . . . . . . . . . . 1 3 . . 4 . . 5 5 2 2 . . STAY 5 | . . . . . . . . . . . . . . . . . 1 . . 2 . . 1 . 1 . . . FOLLOW 1 | . . . . . . . . . . . . . . . . . . . . . . . . . 1 . . . DROP 5 | . . . . . . . . . . . . . . . . 1 2 . . 1 . . 1 . . . . . EXPLORE 11 | . . . . . . . . . . . . . . . . . . . . 1 . . 3 5 . 2 . . Ally Attacks 745 | . . . . 3 7 . . . . . . . . . 32 1 113 50 34 49 . 165 42 190 . 34 . 25 Total Damage 24480 | . . . . 34 112 . . . . . . . . . 558 28 2518 1127 1229 1829 . 5854 1443 7279 . 735 . 1734 Kills 120 | . . . . 2 . . . . . . . . . . 5 . 24 9 5 7 . 13 9 37 . 4 . 5 Allies Corrupted 7 | . . . . . . . . . . . . . . . . . . . . . . . 1 3 . . . 3 Allies Melted 1 | . . . . . . . . . . . . . . . . . . . . . . . . 1 . . . . Intel | -11 -10 -10 -10 -9 -8 -7 -7 -7 -7 -6 -6 -6 -6 -6 -5 -5 -5 -5 -5 -5 -4 -4 -4 -4 -4 -3 -3 -3 ------- Run | Yrd Mat Min Exi Min Mat Fac Low Low Dat Pro Fac Low Low Zio Pro Fac Ext Cet Arc Hub Fac Was Fac Arm Lab Res Gar Res Active Infowar (turns) 16356 | 33 857 349 665 371 1553 390 122 110 20 148 479 132 128 498 683 349 1134 432 1320 427 169 363 1096 977 589 431 354 2177 Optics 9326 | . . . . . . . . . . . 478 132 128 498 683 349 1134 432 1320 427 169 363 1096 977 589 431 120 . Sensors 10414 | . . . . . 1224 372 122 110 20 148 479 132 128 498 593 349 1113 3 . 220 146 363 977 639 561 344 2 1871 Seismic 2931 | 33 857 349 665 371 656 . . . . . . . . . . . . . . . . . . . . . . . Jamming 4281 | . . . . . . 18 . . . . . . . . 43 . . . . . . . 799 488 82 342 337 2172 Robot Analysis Total 2 | . 1 . . . 1 . . . . . . . . . . . . . . . . . . . . . . . Derelict Logs Recovered 11 | . . 1 . 1 . . 1 1 . 2 . 1 . 2 2 . . . . . . . . . . . . . Drone Launches 11 | . . . . . . . . . . . . . . . . . . . . 1 . . 3 5 . 2 . . Drone Recoveries 10 | . . . . . . . . . . . . . . . . . . . . 1 . . 3 5 . 1 . . Zionite Intel Received 6 | . . . . . . . . . . . . . . . . 2 . . . . . . 2 2 . . . . Branch Access 1 | . . . . . . . . . . . . . . . . . . . . . . . 1 . . . . . Guard Positions 1 | . . . . . . . . . . . . . . . . . . . . . . . . 1 . . . . Prototype Schematics 1 | . . . . . . . . . . . . . . . . 1 . . . . . . . . . . . . Unaware Analyses 1 | . . . . . . . . . . . . . . . . . . . . . . . 1 . . . . . Active Terminals 2 | . . . . . . . . . . . . . . . . 1 . . . . . . . 1 . . . . Exploration | -11 -10 -10 -10 -9 -8 -7 -7 -7 -7 -6 -6 -6 -6 -6 -5 -5 -5 -5 -5 -5 -4 -4 -4 -4 -4 -3 -3 -3 ------------- Run | Yrd Mat Min Exi Min Mat Fac Low Low Dat Pro Fac Low Low Zio Pro Fac Ext Cet Arc Hub Fac Was Fac Arm Lab Res Gar Res Turns Passed 18103 | 124 857 728 670 391 2784 390 122 110 20 150 479 132 128 498 683 349 1134 432 1320 427 169 363 1096 994 589 431 354 2179 Spaces Moved 15487 | 58 427 416 525 297 1397 1034 418 414 84 393 1071 339 275 768 617 606 1343 283 176 347 218 504 954 511 408 273 152 1179 Core 19 | 6 . . . . . . . . . . . . . . . . . . . . . . . . . . . 13 Treads 1329 | 52 237 . . . 1014 26 . . . . . . . . . . . . . . . . . . . . . . Legs 1887 | . 190 416 525 297 383 . . . . . . . . . . . . . . . . . . . . . . 76 Wheels 362 | . . . . . . . . . . . . . . . . . . . . . . . . . . . . 362 Hover 4935 | . . . . . . . . . . . . . . . . . 383 283 176 347 218 504 954 511 408 273 152 726 Flight 6955 | . . . . . . 1008 418 414 84 393 1071 339 275 768 617 606 960 . . . . . . . . . . 2 Fastest Speed 19 | 50 120 120 120 120 120 23 24 24 24 24 20 21 21 21 21 19 19 45 40 40 34 34 30 37 43 115 51 40 Average Speed 66 | 148 142 145 120 120 151 26 24 24 24 24 21 21 21 21 21 19 30 48 42 48 51 34 66 98 47 115 141 136 Slowest Speed 310 | 160 190 190 120 120 240 166 24 24 24 24 24 21 21 21 22 22 150 50 45 94 94 34 270 146 115 122 195 310 Overloaded Moves . | . . . . . . . . . . . . . . . . . . . . . . . . . . . . . Propulsion Burnouts . | . . . . . . . . . . . . . . . . . . . . . . . . . . . . . Robots Hopped 5 | . . . . . . 2 . . . . 1 . . 1 . . 1 . . . . . . . . . . . Potential Cave-ins 13 | . . . . . . . . . . . 3 . . . . . . . . 2 . . 2 . . . 6 . Cave-ins Triggered 1 | . . . . . . . . . . . . . . . . . . . . . . . . . . . 1 . Teleports 1 | . . . . . . . . . . . . . . . . . . . . . . . . . . . 1 . Exploration Rate (%) 56 | 5 74 82 90 55 84 26 69 58 70 58 26 63 48 89 67 15 95 84 86 58 6 96 35 47 95 9 16 27 Regions Visited 28 Branch Regions 17 Pre-discovered Areas 8 | . 1 . 1 1 1 1 1 . 1 1 . . . . . . . . . . . . . . . . . . Known Exits Taken 22 | . 1 . 1 . 1 1 1 1 1 1 1 1 1 1 1 1 1 1 1 1 . . 1 1 1 1 . . Unknown Exits Taken 3 | 1 . 1 . 1 . . . . . . . . . . . . . . . . . . . . . . . . Scrap Searched 12 | . . 1 . 1 . . . 1 . 2 . 1 . 2 4 . . . . . . . . . . . . . Spaces Dug 124 | . 2 2 . 2 4 4 5 3 . 14 19 5 . . 12 7 . . . 2 3 . 6 5 . 9 9 11 Terrain Destroyed 649 | . 5 2 . 2 50 4 5 3 . 14 19 5 . . 62 7 4 . 1 169 3 . 17 70 . 12 101 94 Melee 66 | . . . . 2 4 4 3 3 . 6 13 5 . . 10 7 . . . . 2 . 2 1 . 4 . . Projectile 113 | . 5 2 . . . . 2 . . 8 6 . . . 2 . 4 . 1 6 1 . 15 4 . 8 12 37 AOE 470 | . . . . . 46 . . . . . . . . . 50 . . . . 163 . . . 65 . . 89 57 Terrain Rammed . | . . . . . . . . . . . . . . . . . . . . . . . . . . . . . Walls Destroyed . | . . . . . . . . . . . . . . . . . . . . . . . . . . . . . Machines Disabled . | . . . . . . . . . . . . . . . . . . . . . . . . . . . . . Actions | -11 -10 -10 -10 -9 -8 -7 -7 -7 -7 -6 -6 -6 -6 -6 -5 -5 -5 -5 -5 -5 -4 -4 -4 -4 -4 -3 -3 -3 --------- Run | Yrd Mat Min Exi Min Mat Fac Low Low Dat Pro Fac Low Low Zio Pro Fac Ext Cet Arc Hub Fac Was Fac Arm Lab Res Gar Res Total 22046 | 76 550 488 566 321 1783 1123 426 417 83 420 1261 387 344 1102 1128 818 2028 549 1402 590 269 696 1345 901 764 370 266 1573 Wait 4860 | . 49 28 5 12 122 39 . 1 . 1 140 43 70 332 459 178 553 235 1207 207 35 181 297 110 291 70 78 117 Move 15451 | 57 426 415 524 296 1396 1030 417 413 83 392 1068 338 274 765 616 605 1340 282 175 346 218 503 953 510 407 273 150 1179 Hop 4 | . . . . . . 1 . . . . 1 . . 1 . . 1 . . . . . . . . . . . Pick Up 130 | 2 7 3 1 1 25 7 . . . . 4 . . . 3 1 3 . . 11 3 3 11 11 5 1 2 26 Fast Attach 166 | 8 2 1 3 . 21 6 . . . 2 4 . . 2 3 5 22 6 3 . 2 2 11 13 10 1 . 39 Attach 66 | . . . . . 8 6 . . . . 2 . . . 1 1 1 . . 2 3 . 4 6 1 5 9 17 Detach 26 | 1 . . 2 . 1 1 . . . . . . . . . . 2 1 2 2 . 2 1 1 3 . 4 3 Swap 172 | . 5 11 . 5 25 7 2 . . 6 6 . . . 11 1 7 3 1 10 3 1 17 30 5 4 4 8 Drop 178 | . 4 6 4 2 35 14 . . . 1 5 . . 2 6 4 19 6 2 4 2 4 13 8 14 1 . 22 Fire 575 | 8 57 24 . 3 136 2 3 . . 12 9 . . . 19 . 25 8 2 7 1 . 25 43 . 11 18 162 Melee 166 | . . . . 2 12 10 4 3 . 6 22 6 . . 10 12 6 8 10 1 2 . 13 8 27 4 . . Ram . | . . . . . . . . . . . . . . . . . . . . . . . . . . . . . Kick . | . . . . . . . . . . . . . . . . . . . . . . . . . . . . . Crush 2 | . . . . . 2 . . . . . . . . . . . . . . . . . . . . . . . Escape Stasis 61 | . . . . . . . . . . . . . . . . 11 49 . . . . . . . . . 1 . Rewire 189 | . . . 27 . . . . . . . . . . . . . . . . . . . . 161 1 . . . Trap . | . . . . . . . . . . . . . . . . . . . . . . . . . . . . . Miscellaneous . | . . . . . . . . . . . . . . . . . . . . . . . . . . . . . Route ------- -11/Scrapyard -10/Materials (discovered 4 exits: *Mat x2 / *Min / Sub) -10/Mines (discovered 4 exits: *Mat x2 / *Exi / *Sub) -10/Exiles (discovered 2 exits: *Min x2) -9/Mines -8/Materials (discovered 3 exits: *Fac x3) -7/Factory (discovered 3 exits: *Fac / *Low x2) -7/Lower Caves -7/Lower Caves -7/Data Miner -6/Proximity Caves -6/Factory (discovered 4 exits: *Fac x2 / *Low x2) -6/Lower Caves -6/Lower Caves -6/Zion -5/Proximity Caves -5/Factory (discovered 4 exits: Fac / Upp / *Ext x2) -5/Extension (discovered 3 exits: *Fac x2 / *Cet) -5/Cetus (discovered 2 exits: *Fac / *Arc) -5/Archives (discovered 3 exits: *Fac / *Hub x2) -5/Hub_04(d) -4/Factory -4/Waste -4/Factory (discovered 6 exits: *Res x3 / *Upp x2 / *Arm) -4/Armory -4/Lab -3/Research -3/Garrison -3/Research History --------- Turn | Location | Event 3 | -11/Scrapyard | Discovered new exit (range 15) 125 | -11/Scrapyard | Entered Materials 316 | -10/Materials | Build established: Mutant 415 | -10/Materials | Central database locked down 503 | -10/Materials | Identified exit to Mines 531 | -10/Materials | Learned location of 2 exits from Mines 551 | -10/Materials | Learned location of Recycling (-9) 563 | -10/Materials | Learned Storage emergency access door positions 570 | -10/Materials | Learned location of 1 exit from Storage 571 | -10/Materials | Identified exit to Materials 571 | -10/Materials | Identified exit to Subcaves 604 | -10/Materials | Loaded intel: 24 trap records 683 | -10/Materials | Discovered exit to Materials (range 8) 982 | -10/Materials | Entered Mines 1007 | -10/Mines | Met a Derelict bent on vengeance 1162 | -10/Mines | Learned 2 Materials zone layouts 1285 | -10/Mines | Discovered exit to Subcaves (range 10) 1635 | -10/Mines | Met a Derelict shopkeep closing up shop 1704 | -10/Mines | Deemed a non-threat by the Exiles lab entrance 1705 | -10/Mines | Discovered new exit (range 5) 1710 | -10/Mines | Entered Exiles 1710 | -10/Exiles | Found Exiles lab destroyed 1711 | -10/Exiles | Identified exit to Mines 1838 | -10/Exiles | Learned location of Zion (-6) 1899 | -10/Exiles | Build established: Scavenger-Mutant 2247 | -10/Exiles | Opened EX-Vault 2252 | -10/Exiles | Found Prototype Device 2252 | -10/Exiles | Identified Supersonic Drone Bay 2380 | -10/Exiles | Entered Mines 2380 | -9/Mines | Accompanied by 3 allies 2409 | -9/Mines | Discovered new exit (range 11) 2487 | -9/Mines | Learned location of Storage (-9) 2544 | -9/Mines | Found a damaged Exp. Sensor Array with a note attached 2547 | -9/Mines | Found Prototype Device 2771 | -9/Mines | Entered Materials 2771 | -8/Materials | Accompanied by 1 ally 2771 | -8/Materials | Evolved 4 slots: Propulsion x1, Utility x2, Weapon x1 2772 | -8/Materials | Identified exit to Factory 3489 | -8/Materials | Lost 5 parts (1n2u2w) 3829 | -8/Materials | Discovered exit to Factory (range 9) 3843 | -8/Materials | Identified Exp. Sensor Array 4756 | -8/Materials | Build established: Scavenger-Gunner 4771 | -8/Materials | First assault squad dispatched 5168 | -8/Materials | Build established: Mutant 5194 | -8/Materials | Discovered exit to Factory (range 12) 5555 | -8/Materials | Entered Factory 5555 | -7/Factory | Evolved 2 slots: Propulsion x2 5806 | -7/Factory | Identified exit to Lower Caves 5917 | -7/Factory | Discovered new exit (range 7) 5918 | -7/Factory | Identified exit to Factory 5931 | -7/Factory | Build established: Sprinter 5945 | -7/Factory | Entered Lower Caves 6065 | -7/Lower Caves | Discovered new exit (range 5) 6066 | -7/Lower Caves | Identified exit to Lower Caves 6067 | -7/Lower Caves | Entered another Lower Caves area 6091 | -7/Lower Caves | Learned location of 1 exit from Factory 6138 | -7/Lower Caves | Discovered new exit (range 12) 6141 | -7/Lower Caves | Identified exit to Data Miner 6177 | -7/Lower Caves | Entered Data Miner 6177 | -7/Data Miner | Discovered new exit (range 6) 6182 | -7/Data Miner | Met Data Miner 6187 | -7/Data Miner | Learned location of Section 7 (-2) 6187 | -7/Data Miner | Acquired the access code to Warlord's prototype stash 6192 | -7/Data Miner | Received God Mode back door access code from Data Miner 6197 | -7/Data Miner | Identified exit to Proximity Caves 6197 | -7/Data Miner | Entered Proximity Caves 6203 | -6/Proximity Caves | Found Alien Artifact 6203 | -6/Proximity Caves | Identified Core Expander 6203 | -6/Proximity Caves | Installed Core Expander, added new Power slot 6217 | -6/Proximity Caves | Learned Factory garrison access intel 6345 | -6/Proximity Caves | Discovered exit to Factory (range 8) 6347 | -6/Proximity Caves | Entered Factory 6347 | -6/Factory | Evolved 2 slots: Propulsion x1, Utility x1 6348 | -6/Factory | Identified exit to Factory 6349 | -6/Factory | Loaded intel: 4 garrison access locations 6451 | -6/Factory | Identified exit to Lower Caves 6617 | -6/Factory | Discovered exit to Factory (range 19) 6633 | -6/Factory | Build established: Scout 6826 | -6/Factory | Entered Lower Caves 6892 | -6/Lower Caves | Learned location of 1 exit from Factory 6939 | -6/Lower Caves | Discovered new exit (range 12) 6941 | -6/Lower Caves | Identified exit to Lower Caves 6958 | -6/Lower Caves | Entered another Lower Caves area 7062 | -6/Lower Caves | Discovered new exit (range 9) 7086 | -6/Lower Caves | Identified exit to Zion 7086 | -6/Lower Caves | Entered Zion 7099 | -6/Zion | Discovered new exit (range 10) 7139 | -6/Zion | Learned location of 1 exit from Lower Caves 7169 | -6/Zion | Received a hallucinogenic algorithm 7216 | -6/Zion | Learned 4 Factory zone layouts 7330 | -6/Zion | Met Imprinter 7334 | -6/Zion | Imprinted 7336 | -6/Zion | Declared Zion's savior 7399 | -6/Zion | Gained Derelict followers 7402 | -6/Zion | Identified exit to Proximity Caves 7584 | -6/Zion | Entered Proximity Caves 7584 | -5/Proximity Caves | Accompanied by 9 allies 7810 | -5/Proximity Caves | Learned Factory terminal intel 7843 | -5/Proximity Caves | Spotted B-75 Beast 7844 | -5/Proximity Caves | Entered a huge 0b10 base via the front door 7878 | -5/Proximity Caves | Learned 4 Factory zone layouts 7900 | -5/Proximity Caves | Lost 7 allies 8208 | -5/Proximity Caves | Destroyed 8 combat bots 8266 | -5/Proximity Caves | Discovered exit to Factory (range 5) 8267 | -5/Proximity Caves | Entered Factory 8267 | -5/Factory | Evolved 2 slots: Propulsion x1, Utility x1 8268 | -5/Factory | Identified exit to Extension 8269 | -5/Factory | Identified exit to Upper Caves 8269 | -5/Factory | Identified exit to Factory 8270 | -5/Factory | Loaded intel: 28 terminal locations 8489 | -5/Factory | Retrieved Zion intel report: Active Terminals 8501 | -5/Factory | Retrieved Zion intel report: Prototype Schematics 8545 | -5/Factory | Discovered exit to Extension (range 17) 8553 | -5/Factory | Zion Thermal Resupply teleported in 8593 | -5/Factory | Zion Light squad teleported in 8616 | -5/Factory | Entered Extension 8616 | -5/Extension | Accompanied by 3 allies 8623 | -5/Extension | Zion Light squad teleported in 8659 | -5/Extension | Energy Cycler disabled 8659 | -5/Extension | Rescued a captive Derelict 8659 | -5/Extension | Rescued a captive Derelict 8660 | -5/Extension | Rescued a captive Derelict 8660 | -5/Extension | Rescued a captive Derelict 8662 | -5/Extension | Rescued a captive Derelict 8668 | -5/Extension | Rescued a captive Derelict 8670 | -5/Extension | Rescued a captive Derelict 8674 | -5/Extension | Rescued A7 8674 | -5/Extension | Rescued a captive Derelict 8677 | -5/Extension | Rescued a captive Derelict 8690 | -5/Extension | Lost 6 allies 8691 | -5/Extension | Lost 3 parts (1p2n) 8705 | -5/Extension | Zion Kinetic Resupply teleported in 9098 | -5/Extension | Spotted B-75 Beast 9156 | -5/Extension | Allies destroyed B-75 Beast 9159 | -5/Extension | Discovered exit to Factory (range 19) 9183 | -5/Extension | Spotted B-75 Beast 9205 | -5/Extension | Allies destroyed B-75 Beast 9248 | -5/Extension | Zion Fire squad teleported in 9249 | -5/Extension | Zion Hacker squad teleported in 9638 | -5/Extension | Discovered new exit (range 19) 9638 | -5/Extension | Discovered exit to Factory (range 19) 9646 | -5/Extension | Identified exit to Cetus 9687 | -5/Extension | Build established: Messiah-Scout 9750 | -5/Extension | Entered Cetus 9750 | -5/Cetus | Accompanied by 11 allies (A7) 9755 | -5/Cetus | Acquired a Cetus Manufacturing Module code from A7 9759 | -5/Cetus | Spotted Cetus Guard 9760 | -5/Cetus | Spotted Cetus Guard 9764 | -5/Cetus | Spotted Cetus Guard 9766 | -5/Cetus | Spotted Cetus Guard 9767 | -5/Cetus | Allies destroyed Cetus Guard 9777 | -5/Cetus | Allies destroyed Cetus Guard 9782 | -5/Cetus | Allies destroyed Cetus Guard 9784 | -5/Cetus | Allies destroyed Cetus Guard 9804 | -5/Cetus | Lost 3 allies 9821 | -5/Cetus | Started Cetus Manufacturing Module 9846 | -5/Cetus | Manufactured an Enhanced Grunt 9862 | -5/Cetus | Escorted A7 to Cetus Mainframe 9871 | -5/Cetus | Manufactured an Enhanced Grunt 9896 | -5/Cetus | Manufactured an Enhanced Grunt 9921 | -5/Cetus | Manufactured an Enhanced Grunt 9946 | -5/Cetus | Manufactured an Enhanced Grunt 9961 | -5/Cetus | Discovered new exit (range 19) 10019 | -5/Cetus | Spotted Cetus Guard 10019 | -5/Cetus | Spotted Cetus Guard 10027 | -5/Cetus | Spotted Cetus Guard 10027 | -5/Cetus | Allies destroyed Cetus Guard 10031 | -5/Cetus | Spotted Cetus Guard 10031 | -5/Cetus | Allies destroyed Cetus Guard 10040 | -5/Cetus | Allies destroyed Cetus Guard 10044 | -5/Cetus | Build established: Messiah-Mutant 10044 | -5/Cetus | Discovered exit to Factory (range 20) 10058 | -5/Cetus | Allies destroyed Cetus Guard 10062 | -5/Cetus | Scared off Revision 17 10120 | -5/Cetus | Murdered A7 10123 | -5/Cetus | Extracted ID and sensor layout for unrecognized location from A7's data core 10126 | -5/Cetus | Found Prototype Protection 10126 | -5/Cetus | Identified Med. Regenerative Plating 10135 | -5/Cetus | Identified exit to Archives 10182 | -5/Cetus | Entered Archives 10182 | -5/Archives | Accompanied by 10 allies 10239 | -5/Archives | Lost 4 allies 10241 | -5/Archives | Discovered exit to Factory (range 14) 10245 | -5/Archives | Unable to access archive contents 10255 | -5/Archives | Discovered new exit (range 20) 10256 | -5/Archives | Discovered new exit (range 20) 10268 | -5/Archives | Identified exit to Hub_04(d) 11502 | -5/Archives | Entered Hub_04(d) 11502 | -5/Hub_04(d) | Accompanied by 6 allies 11507 | -5/Hub_04(d) | Discovered exit to Factory (range 13) 11542 | -5/Hub_04(d) | Zion Heavy Resupply teleported in 11772 | -5/Hub_04(d) | Zion Fire squad teleported in 11841 | -5/Hub_04(d) | Network Hub disabled 11843 | -5/Hub_04(d) | Network Hub disabled 11843 | -5/Hub_04(d) | Network Hub disabled 11866 | -5/Hub_04(d) | Spotted B-75 Beast 11874 | -5/Hub_04(d) | Spotted Lightning 11874 | -5/Hub_04(d) | Spotted Lightning 11874 | -5/Hub_04(d) | Spotted Lightning 11906 | -5/Hub_04(d) | Lost 3 allies 11929 | -5/Hub_04(d) | Entered Factory 11929 | -4/Factory | Evolved 2 slots: Utility x2 12098 | -4/Factory | Sucked down chute 12098 | -4/Factory | Entered Waste 12101 | -4/Waste | Spotted C-40 Crusher 12101 | -4/Waste | Spotted C-40 Crusher 12180 | -4/Waste | Spotted C-40 Crusher 12198 | -4/Waste | Spotted C-40 Crusher 12229 | -4/Waste | Spotted C-40 Crusher 12240 | -4/Waste | Warlord forces began an assault 12263 | -4/Waste | Allies destroyed C-40 Crusher 12270 | -4/Waste | Allies destroyed C-40 Crusher 12276 | -4/Waste | Spotted C-40 Crusher 12281 | -4/Waste | Allies destroyed C-40 Crusher 12281 | -4/Waste | Allies destroyed C-40 Crusher 12290 | -4/Waste | Allies destroyed C-40 Crusher 12297 | -4/Waste | Allies destroyed C-40 Crusher 12306 | -4/Waste | Build established: Messiah-Scout 12309 | -4/Waste | Discovered new exit (range 13) 12321 | -4/Waste | Lost 7 allies 12404 | -4/Waste | Identified exit to Factory 12461 | -4/Waste | Entered Factory 12461 | -4/Factory | Accompanied by 11 allies 12478 | -4/Factory | Discovered new exit (range 15) 12486 | -4/Factory | Identified exit to Research 12499 | -4/Factory | Discovered exit to Research (range 51) 12617 | -4/Factory | Retrieved Zion intel report: Branch Access 12617 | -4/Factory | Identified exit to Upper Caves 12617 | -4/Factory | Identified exit to Armory 12713 | -4/Factory | Lost 3 allies 12838 | -4/Factory | Retrieved Zion intel report: Unaware Analyses 12839 | -4/Factory | Zion Offense Resupply teleported in 12887 | -4/Factory | Discovered exit to Research (range 11) 13144 | -4/Factory | Lost 6 allies 13557 | -4/Factory | Entered Armory 13588 | -4/Armory | Lost 12 parts (2p6n2u2w) 13617 | -4/Armory | Zion Hacker squad teleported in 13757 | -4/Armory | Retrieved Zion intel report: Active Terminals 13914 | -4/Armory | Retrieved Zion intel report: Guard Positions 13915 | -4/Armory | Zion Heavy squad teleported in 14307 | -4/Armory | First assault squad dispatched 14374 | -4/Armory | Lost 5 allies 14484 | -4/Armory | Assisted by bots powering up and referring to "LRC-V3" 14492 | -4/Armory | Zion Heavy squad teleported in 14505 | -4/Armory | Discovered new exit (range 14) 14531 | -4/Armory | Identified exit to Lab 14545 | -4/Armory | P-70 Sage assimilated allied Veteran 7j 14551 | -4/Armory | Entered Lab 14551 | -4/Lab | Accompanied by 5 allies 14551 | -4/Lab | Discovered exit to Research (range 9) 14568 | -4/Lab | Found Prototype Protection 14568 | -4/Lab | Identified Zio. Weapon Casing 14599 | -4/Lab | Hidden lab's door opened automatically 14599 | -4/Lab | Sensor layout match revealed 14600 | -4/Lab | Gained access to the hidden lab's interior 14658 | -4/Lab | Unable to decrypt terminal 14725 | -4/Lab | Found Prototype Energy Cannon 14727 | -4/Lab | Found Prototype Energy Gun 14727 | -4/Lab | Identified Hyp. EM Gauss Rifle 14747 | -4/Lab | Found Alien Artifact 14747 | -4/Lab | Identified Core Regenerator 14747 | -4/Lab | Used Core Regenerator, restored core integrity (+210) 14755 | -4/Lab | Found Alien Artifact 14755 | -4/Lab | Identified Integrated Reactor 14755 | -4/Lab | Installed Integrated Reactor, increased core energy generation (+10) 14850 | -4/Lab | Found Alien Artifact 14869 | -4/Lab | Found Prototype Hackware 14869 | -4/Lab | Identified Deep Network Scanner 15097 | -4/Lab | Identified Potential Cannon 15140 | -4/Lab | Entered Research 15140 | -3/Research | Accompanied by 3 allies 15140 | -3/Research | Evolved 2 slots: Utility x2 15395 | -3/Research | Build established: Hacker-Assassin 15521 | -3/Research | Garrison activated, responded to threat 15571 | -3/Research | Identified exit to Garrison 15571 | -3/Research | Entered Garrison 15575 | -3/Garrison | Lost 3 allies 15589 | -3/Garrison | Triggered checkpoint 15691 | -3/Garrison | Crushed by falling debris 15783 | -3/Garrison | Build established: Hacker-Mutant 15886 | -3/Garrison | Identified Transdimensional Reconstructor 15886 | -3/Garrison | Warped through subspace 15906 | -3/Garrison | Discovered new exit (range 7) 15914 | -3/Garrison | Lost 3 parts (1p2u) 15925 | -3/Garrison | Entered Research 16195 | -3/Research | Found Quantum Capacitor 16236 | -3/Research | Zion Heavy squad teleported in 16411 | -3/Research | Found Zio. Weapon Casing 16526 | -3/Research | Lost 12 parts (2p4n3u3w) 16667 | -3/Research | Found Prototype Protection 16667 | -3/Research | Identified Zio. Heavy Carapace 16779 | -3/Research | Core integrity fell below 50% 16779 | -3/Research | System corruption reached 10% 16816 | -3/Research | Lost 4 parts (1n2u1w) 16906 | -3/Research | Found Prototype Processor 16906 | -3/Research | Identified Exp. Signal Interpreter 17114 | -3/Research | Zion Heavy squad teleported in 17338 | -3/Research | Found Zio. Weapon Casing 17409 | -3/Research | Lost 8 parts (1p3n3u1w) 17421 | -3/Research | Found Zio. Heavy Carapace 17453 | -3/Research | Found Hvy. Insulated Plating 17492 | -3/Research | Terminal network hard line cut 17688 | -3/Research | Build established: Messiah-Skirmisher 18095 | -3/Research | Core integrity fell below 20% 18104 | -3/Research | Destroyed by G-67 Veteran with Plasma Rifle Last Messages --------------- 18093_ Wheel destroyed. 18093_ U-05 Engineer builds a Wall. 18094_ Imp. Antigrav System destroyed. 18094_ Xenon Bombardment Thruster destroyed. 18095_ Dropped Hcp. Storage Unit. 18095_ ALERT: Garrison Access compromised, dispatching multiple assault carriers. 18095_ Garrison Access disabled. 18095_ Imp. Antigrav System destroyed. 18095_ Dropped Mic. Antimatter Reactor. 18096_ Dropped Com. Mass Driver. 18097_ Antigrav Array destroyed. 18097_ K-01 Serf destroyed. 18097_ Xenon Bombardment Thruster destroyed. 18098_ K-01 Serf collects debris. 18098_ Acquired 14 matter. 18100_ P-80 Master resets S-43 Plague, system corruption cleaned. 18101_ Adv. Transmission Jammer destroyed. 18102_ Exp. Sensor Array destroyed. 18103_ M-13 Machinist repairs P-80 Master Adv. Remote Datajack. Map ----- +----------------------------------------------------+ | ?????????????????????????????????????????????????? | | ?????????????????????????????????????????????????? | | ?????????????????????????????????????????????????? | | ?????????????????????????????????????????????????? | | ?????????????????????????????????????????????????? | | ?????????????????????????????????????????????????? | | ?????????????????????????????????????????????????? | | ?????????????????????????????????????????????????? | | ?????????????????????????????????????????????????? | | ?????????????????????????????????????????????????? | | ?????????????????????????????????????????????????? | | ?????????????????????????????????????????????????? | | ?????????????????????????????????????????????????? | | ?????????????????????????????????????????????????? | | ?????????????????????????????????????????????????? | | ?????????????????????????????????????????????????? | | ?????????????????????????????????????????????????? | | ?????????????????????????????????????????????????? | | ?????????????????????????????????????????????????? | | ?????????????????????????????????????????????????? | | ?????????????????????????????????????????????????? | | ?????????????????????????????????????????????????? | | ?????????????????????????????????????????????????? | | ?????????????????????????????????????????????????? | | ??????????????####################+###########???? | | ?????????? @ A #???? | | ?????????? t #??## | | ?????????? g A ##### | | ??????????? k sg pm= | | ???????????##+####################s######= ##### | | ??????????????????????????????# *% !/=## #???? | | ??????????????????????????????# ]=!|##] #???? | | ??????????????????????????????# *]!!##= #???? | | ??????????????????????????????# !!*/%= #???? | | ??????????????????????????????# "" =[=##[% #???? | | ??????????????????????????????# "G %[## #???? | | ??????????????????????????????# """ ## #???? | | ??????????????????????????????# ## #???? | | ??????????????????????????????# ## #???? | | ??????????????????????????????#####+##### #???? | | ??????????????????????????????????# ????# #???? | | ??????????????????????????????????# ????# #???? | | ???????????????????????H?????????? ????? #???? | | ??????????????????????????????????#??????#/#+#???? | | ?????????????????????????????????????????? ?????? | | ?????????????????????????????????????????? ?????? | | ?????????????????????????????????????????? ?????? | | ?????????????????????????????????????????? ?????? | | ?????????????????????????????????????????????????? | | ?????????????????????????????????????????????????? | +----------------------------------------------------+ Best States ------------- Heat Dissipation 98 Energy Generation 74 Energy Capacity 615 Matter Stores 300 Matter Capacity 300 Sight Range 20 Robot Scan Range 20 Terrain Scan Density 10 Jamming Range 16 Power Amplification 30 Additional Mass Support 9 Armor Coverage 1200 Resistance: EM 30 Weapon Shielding 100 Phase Shifting 15 Evasion (%) 70 Targeting Accuracy 8 Target Analysis 12 Recoil Reduction 3 Particle Charging 30 Offensive Hacking 35 Defensive Hacking 12 Item Schematics ----------------- Combat Drone Bay | -7/Data Miner | Free Lgt. Regenerative Plating | -7/Data Miner | Free Biomechanical Wings | -7/Data Miner | Free Thermal Defense Suite | -7/Data Miner | Free Field Propulsion Drive | -7/Data Miner | Free Adv. Recoil Stabilizer | -7/Data Miner | Free Force Rifle | -7/Data Miner | Free Tesla Rifle | -7/Data Miner | Free Force Lance | -6/Factory | Hacked Cld. Nuclear Pulse Thruster | -5/Factory | Z-intel Hvy. Gatling Laser | -5/Factory | Z-intel Lgt. Neutrino Core | -5/Factory | Z-intel Adv. EM Disruption Field | -5/Factory | Z-intel Gui. EMP Blaster | -5/Factory | Z-intel Cld. Plasma Cannon | -5/Factory | Z-intel Hvy. Proton Cannon | -5/Factory | Z-intel Imp. KE Penetrator | -5/Factory | Z-intel Enh. Fission Core | -5/Factory | Z-intel Imp. Plasma Cutter | -4/Factory | Scanalyzed Robot Schematics ------------------ Y-54 Guardian | -7/Data Miner | Free L-41 Fighter | -7/Data Miner | Free X-67 Chaingunner | -7/Data Miner | Free A-15 Conveyor | -7/Data Miner | Free Fabricated ------------ Nothing Repaired ---------- Nothing Alien Tech Used ----------------- Core Expander Core Regenerator Integrated Reactor Transdimensional Reconstructor Achievements -------------- Max Potential Challenges ------------ None Game ------ Seed TransportThrowingStreamer Manual? 0 Play Time 04:46:39 Cumulative 300.1 hours Start 2025.08.22 @ 17:55:25 End 2025.08.23 @ 11:37:43 Sessions 3 Manual Loads 0 Difficulty Rogue Special Mode None Game No. 130 Rogue 109 Adventurer 21 Explorer 0 Win Type - Total 13 Types 9/0/3/1/0/0/0/0/0/0 Lore% 50 Gallery% 68 Achievement% 62 Wizard Run 0 Options --------- Layout 1 ASCII 0 Keyboard 0 Movement Mouse Keybinds 0 Fullscreen 2 Font 32/SmallcapsGlow Map View 77x35 Zoom Use 0% Tactical HUD 1 Map Filters NONE Filters NONE Steam 1 RUN: f1a3102b-1b70-411d-b173-df6e4671c09c